Cogmind - Beta 13 @@@ ROGUE MODE // 2024.05.17 @ 17:18:02 Player: CONM Result: Destroyed by PW-671(R) with Subdweller Machine Gun Performance ------------- Evolutions (0) 0 Regions Visited (2) 400 Robots Destroyed (21) 105 Value Destroyed (377) 377 Prototype IDs (0) 0 Alien Tech Used (0) 0 Bonus (16) 16 TOTAL SCORE: 898 Bonus ------- High Alert Combat Kills 16 Cogmind --------- Core Integrity 0/250 Matter 223/300 Energy 98/100 System Corruption 0% Temperature Cool (0) Movement Rolling (95) Location -10/Subcaves Parts ------- > --- POWER (1) -------- (None) > --- PROPULSION (2) --- Wheel Subdweller Monowheel > --- UTILITY (2) ------ (None) > --- WEAPON (2) ------- Light Assault Rifle > --- INVENTORY (5) ---- Small Storage Unit Structural Scanner Improved Terrain Scanner Peak State ------------ > --- POWER ------------ Ion Engine > --- PROPULSION ------- Light Treads Light Treads > --- UTILITY ---------- Scrap Shield > --- WEAPON ----------- Medium Laser Light Assault Rifle > --- INVENTORY -------- Wheel Structural Scanner Improved Terrain Scanner [Rating: 9] Favorites ----------- Power Ion Engine Engine Ion Engine Propulsion Light Treads Treads Light Treads Wheel Subdweller Monowheel Utility Small Storage Unit Device Seismic Detector Storage Small Storage Unit Protection Scrap Shield Weapon Medium Laser Energy Gun Medium Laser Ballistic Gun Light Assault Rifle Launcher Grenade Launcher Build | -11 -10 -10 ------- Run | Yrd Mat Sub Slots Evolved . | . . . Power . | . . . Propulsion . | . . . Utility . | . . . Weapon . | . . . Parts Attached 14 | 7 1 6 Power 2 | 1 . 1 Engine 2 | 1 . 1 Core . | . . . Reactor . | . . . Propulsion 4 | 2 . 2 Treads 2 | 2 . . Leg . | . . . Wheel 2 | . . 2 Hover . | . . . Flight . | . . . Utility 3 | 2 . 1 Device 1 | 1 . . Storage 1 | 1 . . Processor . | . . . Hackware . | . . . Protection 1 | . . 1 Artifact . | . . . Weapon 5 | 2 1 2 Energy Gun 2 | 2 . . Energy Cannon . | . . . Ballistic Gun 1 | . . 1 Ballistic Cannon . | . . . Launcher 2 | . 1 1 Special Weapon . | . . . Impact Weapon . | . . . Slashing Weapon . | . . . Piercing Weapon . | . . . Special Melee Weapon . | . . . Unidentified Prototypes . | . . . Parts Lost 3 | . . 3 Power 1 | . . 1 Propulsion . | . . . Utility 1 | . . 1 Weapon 1 | . . 1 Highest Loss Streak 2 | . . 2 To Critical Strikes . | . . . Average Slot Usage (%) 91 | . 100 74 Engine 14 | . 14 14 Treads 25 | . 28 21 Wheel 2 | . . 6 Device 9 | . 14 . Storage 9 | . 14 . Protection 2 | . . 8 Energy Gun 13 | . 18 4 Ballistic Gun 4 | . . 13 Launcher 7 | . 9 4 Naked Turns . | . . . Heaviest Build 27 | 14 16 27 Greatest Support 40 | 40 40 40 Greatest Overweight (x) . | . . . Average Overweight (x) . | . . . Largest Inventory Capacity 8 | 8 8 8 Average Capacity 7 | 7 8 5 Most Carried 8 | 5 7 8 Average Carried 4 | 3 6 4 Final Capacity 8 | 8 8 5 Final Carried 7 | 5 7 3 Class Distribution -------------------- 100% | Mutant Dominant Class ---------------- Mutant | -10/Materials Mutant | -10/Subcaves Resources | -11 -10 -10 ----------- Run | Yrd Mat Sub Matter Collected 386 | 270 57 59 Remotely . | . . . Salvage Created 531 | 124 407 . Parts 33 | 11 22 . Haulers Intercepted 1 | . 1 . Recyclers Shooed 1 | . 1 . Parts Field Recycled . | . . . Retrieved Matter . | . . . Parts Self-Destructed 6 | . . 6 Prevented . | . . . Kills | -11 -10 -10 ------- Run | Yrd Mat Sub Combat Hostiles Destroyed 13 | . 13 . Guns 5 | . 5 . AOE 8 | . 8 . Classes Destroyed 5 | 1 4 . Tunneler 5 | 5 . . Hauler 1 | . 1 . Recycler 2 | . 2 . Swarmer 6 | . 6 . Grunt 7 | . 7 . Best Kill Streak 5 | 2 5 . Combat Bots Only 3 | . 3 . Max Kills in Single Turn 3 | 1 3 . Gunslinging . | . . . Exploded 2 | . 2 . Melee . | . . . Uniques/NPCs Destroyed . | . . . Combat | -11 -10 -10 -------- Run | Yrd Mat Sub Hostile Shots Fired 95 | . 47 48 Missed 35 | . 19 16 Damage Taken 984 | . 345 639 Core 267 | . 65 202 Absorbed by Shields . | . . . Core Remaining (%) 100 | 100 . . Volleys Fired 32 | 12 18 2 Largest 2 | 2 2 1 Hottest 90 | 90 80 20 Shots Fired 58 | 24 32 2 Gun 44 | 24 18 2 Cannon . | . . . Launcher 14 | . 14 . Special . | . . . Kinetic 2 | . . 2 Thermal 42 | 24 18 . Explosive 14 | . 14 . Electromagnetic . | . . . Robot Hit Streak 11 | 6 11 1 Robot Miss Streak 4 | 4 1 1 Penetration Max . | . . . Secondary Targets . | . . . Shots Hit Robots 30 | 12 17 1 Core Hits 31 | 6 25 . Critical Kills . | . . . Critical Parts Destroyed . | . . . Critical Strikes 2 | 2 . . Burn 2 | 2 . . Melee Attacks . | . . . Impact . | . . . Slashing . | . . . Piercing . | . . . Sneak Attacks . | . . . Combat Hostiles . | . . . Follow-up Attacks . | . . . Damage Inflicted 1367 | 158 1202 7 Guns 329 | 158 164 7 Cannons . | . . . Explosions 1024 | . 1024 . Melee . | . . . Ramming 14 | . 14 . Kinetic 7 | . . 7 Thermal 322 | 158 164 . Explosive 1024 | . 1024 . Electromagnetic . | . . . Impact . | . . . Slashing . | . . . Piercing . | . . . Highest Corruption . | . . . Average Corruption . | . . . Corruption Purged . | . . . Corruption Blocked . | . . . Overload Shots . | . . . Overflow Damage 25 | . 25 . Projectiles . | . . . Explosions 25 | . 25 . Melee . | . . . Knockbacks . | . . . Impact . | . . . Kinetic . | . . . Secondary . | . . . Self-Inflicted Damage 72 | . 72 . Shots 3 | . 3 . Rammed 1 | . 1 . Targets Rammed 2 | . 2 . Kicked . | . . . Crushed 1 | . 1 . Highest Temperature 72 | 60 72 . Average Temperature 27 | 27 28 . Received Heat Transfer 195 | . 90 105 Siege Activations . | . . . Robots Corrupted . | . . . Combat Hostiles . | . . . Parts Fried . | . . . Impact Corruptions . | . . . Robots Melted . | . . . Combat Hostiles . | . . . Parts Melted 2 | 2 . . Heat Transferred 1050 | 569 481 . Parts Sabotaged . | . . . Parts Stolen . | . . . Parts Stripped . | . . . Power Chain Reactions . | . . . Alert | -11 -10 -10 ------- Run | Yrd Mat Sub Peak Influence 477 | 25 477 . Initial . | . . . Average 105 | 10 194 . Maximum Alert Level 2 | . 2 . Low Security (%) 70 | 100 43 . Level 1 20 | . 39 . Level 2 8 | . 16 . Level 3 . | . . . Level 4 . | . . . Level 5 . | . . . High Security . | . . . Max Security . | . . . Squads Dispatched 2 | . 2 . Investigation 1 | . 1 . Extermination . | . . . Reinforcement 1 | . 1 . Assault . | . . . Garrison . | . . . Intercept . | . . . Searches Triggered . | . . . Construction Impeded . | . . . Haulers Reinforced . | . . . Active Scanning Responses . | . . . Cargo Convoy Interrupts . | . . . Stealth | -11 -10 -10 --------- Run | Yrd Mat Sub Distress Signals 2 | . 2 . Communications Jammed . | . . . Distress Signals . | . . . Times Spotted 32 | . 18 14 Peak Tracking Total 8 | . 5 8 Tactical Retreats 2 | . . 2 Traps | -11 -10 -10 ------- Run | Yrd Mat Sub Traps Triggered 1 | . . 1 Indirectly . | . . . Trap Hack Attempts . | . . . Triggered . | . . . Disarmed . | . . . Reprogrammed . | . . . Reused . | . . . Traps Extracted . | . . . Installed . | . . . Triggered . | . . . Machines | -11 -10 -10 ---------- Run | Yrd Mat Sub Machines Disabled 3 | . 3 . Max in Single Turn 2 | . 2 . Machines Repaired . | . . . Machines Dismantled . | . . . Machines Sabotaged . | . . . Overloaded Fab Kills . | . . . Hacking | -11 -10 -10 --------- Run | Yrd Mat Sub Machines Accessed 2 | . 2 . Terminals 1 | . 1 . Fabricators . | . . . Repair Stations . | . . . Recycling Units 1 | . 1 . Scanalyzers . | . . . Garrison Access . | . . . Total Hacks 4 | . 4 . Successful 2 | . 2 . Failed 2 | . 2 . Catastrophic 1 | . 1 . Database Lockouts . | . . . Manual 2 | . 2 . Terminals 3 | . 3 . Fabricators . | . . . Repair Stations . | . . . Recycling Units 1 | . 1 . Scanalyzers . | . . . Garrison Access . | . . . Terminal Hacks 1 | . 1 . Terminal Index 1 | . 1 . Fabricator Hacks . | . . . Repair Station Hacks . | . . . Recycling Unit Hacks 1 | . 1 . Report Inventory 1 | . 1 . Scanalyzer . | . . . Garrison Access Hacks . | . . . Unauthorized Hacks . | . . . Terminals . | . . . Fabricators . | . . . Repair Stations . | . . . Recycling Units . | . . . Scanalyzers . | . . . Garrison Access . | . . . Data Cores Recovered . | . . . Used . | . . . Hacking Detections 1 | . 1 . Full Trace Events 1 | . 1 . Feedback Events . | . . . Feedback Blocked . | . . . Robot Schematics Acquired . | . . . Robots Built . | . . . Authchips . | . . . Time . | . . . Total Robot Build Rating . | . . . Part Schematics Acquired . | . . . Parts Built . | . . . Authchips . | . . . Time . | . . . Total Part Build Rating . | . . . Parts Repaired . | . . . Time . | . . . Parts Recycled . | . . . Recycled Matter . | . . . Retrieved Matter . | . . . Retrieved Components . | . . . Parts Scanalyzed . | . . . Part Schematics Acquired . | . . . Parts Damaged . | . . . Bothacking | -11 -10 -10 ------------ Run | Yrd Mat Sub Used RIF Installer . | . . . Robots Hacked . | . . . Non-combat . | . . . Combat . | . . . Robot Hacks Applied . | . . . Relay Couplers Released . | . . . Fabnet Peak Effective % . | . . . Robots Rewired . | . . . Allies Hacked . | . . . Hacks Repelled . | . . . Allies | -11 -10 -10 -------- Run | Yrd Mat Sub Total Allies . | . . . Largest Group . | . . . Highest-Rated Group . | . . . Highest-Rated Ally . | . . . Total Orders . | . . . Ally Attacks . | . . . Total Damage . | . . . Kills . | . . . Allies Corrupted . | . . . Allies Melted . | . . . Intel | -11 -10 -10 ------- Run | Yrd Mat Sub Robot Analysis Total . | . . . Derelict Logs Recovered . | . . . Drone Launches . | . . . Drone Recoveries . | . . . Exploration | -11 -10 -10 ------------- Run | Yrd Mat Sub Turns Passed 1133 | 428 459 246 Spaces Moved 608 | 240 205 163 Core 6 | 6 . . Treads 550 | 234 205 111 Legs . | . . . Wheels 52 | . . 52 Hover . | . . . Flight . | . . . Fastest Speed 50 | 50 160 95 Average Speed 153 | 157 160 139 Slowest Speed 160 | 160 160 160 Overloaded Moves . | . . . Propulsion Burnouts . | . . . Robots Hopped . | . . . Cave-ins Triggered . | . . . Exploration Rate (%) 21 | 9 39 17 Regions Visited 2 Branch Regions 1 Pre-discovered Areas . | . . . Known Exits Taken . | . . . Unknown Exits Taken 2 | 1 1 . Scrap Searched . | . . . Spaces Dug . | . . . Terrain Destroyed 94 | . 94 . Melee . | . . . Projectile . | . . . AOE 94 | . 94 . Terrain Rammed . | . . . Walls Destroyed . | . . . Machines Disabled . | . . . Actions | -11 -10 -10 --------- Run | Yrd Mat Sub Total 749 | 263 302 184 Wait 75 | . 75 . Move 606 | 239 204 163 Hop . | . . . Pick Up 11 | 5 2 4 Fast Attach 7 | 7 . . Attach 4 | . . 4 Detach . | . . . Swap 3 | . 1 2 Drop 9 | . . 9 Fire 32 | 12 18 2 Melee . | . . . Ram . | . . . Kick . | . . . Crush 2 | . 2 . Escape Stasis . | . . . Rewire . | . . . Trap . | . . . Miscellaneous . | . . . Route ------- -11/Scrapyard -10/Materials (discovered 2 exits: [*Min] / [*Sub]) -10/Subcaves History --------- Turn | Location | Event 5 | -11/Scrapyard | Discovered new exit (range 16) 429 | -11/Scrapyard | Entered Materials 430 | -10/Materials | Build established: Mutant 790 | -10/Materials | Discovered new exit (range 6) 869 | -10/Materials | Discovered new exit (range 4) 888 | -10/Materials | Entered Subcaves 935 | -10/Subcaves | A swath of the cavern ceiling suddenly collapsed 1023 | -10/Subcaves | Ambushed by swarm of Subdwellers 1025 | -10/Subcaves | Ambushed by Subdwellers from Twisted Machinery 1035 | -10/Subcaves | Ambushed by Subdweller buried in earth 1073 | -10/Subcaves | Lost 4 allies 1077 | -10/Subcaves | Core integrity fell below 50% 1129 | -10/Subcaves | Core integrity fell below 20% 1134 | -10/Subcaves | Destroyed by PW-671(R) with Subdweller Machine Gun Last Messages --------------- 01027_ 17-UK5(R) suffers critical hit (Destroy). 01027_ 17-UK5(R) destroyed. 01030_ UJ-Q4R(R) emerges from the Twisted Machinery. 01030_ BP-YBA(R) destroyed. 01032_ EC-XC7(R) emerges from the Twisted Machinery. 01035_ Triggered Shrapnel Trap. 01035_ An expanding cloud of shrapnel blasts out in all directions. 01036_ 43-6GG(R): "ARGHSUB!" 01037_ Grenade Launcher destroyed. 01038_ CK-68K(R) affixes Scrap Shield Fragment to Scrap Shield. 01041_ HV Slug penetrates EC-XC7(R). 01041_ EC-XC7(R) suffers critical hit (Destroy). 01041_ EC-XC7(R) knocked back. 01059_ Scrap Shield destroyed. 01079_ Dropped Lgt. Treads. 01132_ Ion Engine destroyed. Map ----- +----------------------------------------------------+ | ????????????????????????????????????????????? | | ????????????????????????????????????????????? | | ????????????????????????????????????????????? | | ????????????????????????????????????????????? | | ????????????????????????????????????????????? | | ????????????????????????????????????????????? | | ????????????????????????????????????????????? | | ????????????????????????????????????????????? | | ????????????????????????????????????????????? | | ????????????????????????????????????????????? | | ???????????????????????????#????????????????? | | ?????????????????????????## #??????????????? | | ????????????????????????# ??????????????? | | ???????????????????????# ??????????????? | | ??????????????????????? #??????????????? | | ??????????????????????? #??????????????? | | ???????????????????????? #??????????????? | | ???????????????????????? #??????????????? | | ???????????????????????? #??????????????? | | ???????????????????????? ???????????????? | | ???????????????????????? #???????????????? | | ???????????????????????? #???????????????? | | ????????????????####????# #???????????????? | | ????????????????# ##??## #????????????????? | | ????????????????# #### #????????????????? | | ????????????????# ## @ #????????????????? | | ????????????????# R #????????????????? | | ????????????????## R ###????????????????? | | ????????????????## ##??????????????????? | | ????????????????# ###???????????????????? | | ????????????????# ##?????????????????????? | | ????????????????# #####??????????????????? | | ????????????????## ## ##?????????????????? | | ?????????????????# ##????????????????? | | ?????????????????# ##???????????????? | | ?????????????????# ## ##??????????????? | | ?????????????????###### #??????????????? | | ?????????????????# ## #??????????????? | | ?????????????????# #??????????????? | | ??????###????????## ####??????????????? | | ??????# ##??###???## ##????????????????? | | ??????# #?# #????## #????????????????? | | ?????## #?# #####?## #????????????????? | | ????## * ### # ###### ##????????????????? | | ????# [= ## # ##????????????????? | | ????# ! ## #????????????????? | | ????## ### ## ## #????????????????? | | ?????# ##??# ## ##????????????????? | | ?# # #??# ## #????????????????? | | ?# ###### ##??# # ##????????????????? | +----------------------------------------------------+ Best States ------------- Heat Dissipation 25 Energy Generation 10 Energy Capacity 250 Matter Stores 300 Matter Capacity 300 Sight Range 16 Terrain Scan Density 10 Armor Coverage 800 Evasion (%) 41 Recoil Reduction 2 Item Schematics ----------------- None Robot Schematics ------------------ None Fabricated ------------ Nothing Alien Tech Used ----------------- None Achievements -------------- None Challenges ------------ None Game ------ Seed LatentNetworkReactor Manual? 0 Play Time 00:14:46 Cumulative 17.0 hours Start 2024.05.17 @ 13:47:34 End 2024.05.17 @ 17:18:02 Sessions 1 Manual Loads 0 Difficulty Rogue Special Mode None Game No. 38 Rogue 38 Adventurer 0 Explorer 0 Win Type - Total 0 Types 0/0/0/0/0/0/0/0/0 Lore% 15 Gallery% 15 Achievement% 15 Wizard Run 0 Options --------- Layout 1 ASCII 0 Keyboard 0 Movement Arrows Keybinds 0 Fullscreen 1 Font 24/Smallcaps Map View 50x40 Zoom Use 0% Tactical HUD 1 Map Filters NONE Filters NONE Steam 1 RUN: 73f3c898-9f35-47e6-97ad-955c412bf951